bitfinex/quotes_ETHUSD_20220308
["timestamp","ask_amount","ask_price","bid_price","bid_amount"]
[1646776101300,2.34799,2558.2,2557.4,1.1723]
[1646776102503,0.97811,2558.0,2557.4,1.1723]
[1646776103003,1.95619,2558.0,2557.4,1.1723]
[1646776103300,3.23429,2558.0,2557.4,1.1723]
[1646776103503,6.73429,2558.0,2557.4,1.1723]
[1646776103951,6.73429,2558.0,2557.0,3.52753341]
[1646776103952,6.14801,2558.0,2557.0,2.8152]
[1646776104150,0.97817,2557.8,2557.0,2.8152]
[1646776104352,0.97823,2557.6,2557.0,2.8152]
[1646776105951,0.97827,2557.5,2557.0,2.8152]
[1646776106153,2.93476,2557.6,2557.5,0.72728653]
[1646776106957,6.43476,2557.6,2557.5,0.72728653]
[1646776107354,2.93476,2557.6,2557.5,0.72728653]
[1646776113355,3.23476,2557.6,2557.5,0.72728653]
[1646776113755,4.23476,2557.6,2557.5,0.72728653]
[1646776113955,3.23476,2557.6,2557.5,0.72728653]
[1646776114154,4.23476,2557.6,2557.5,0.72728653]
[1646776114357,2.93476,2557.6,2557.5,0.72728653]
[1646776122803,3.93476,2557.6,2557.5,0.72728653]
[1646776123003,3.23476,2557.6,2557.5,0.72728653]
[1646776123207,4.23476,2557.6,2557.5,0.72728653]
[1646776123505,6.73476,2557.6,2557.5,0.72728653]
[1646776123704,7.73476,2557.6,2557.5,0.72728653]
[1646776124712,8.71309,2557.6,2557.5,0.72728653]
[1646776125612,8.66309,2557.6,2557.5,0.72728653]
[1646776126763,8.66309,2557.6,2556.9,1.13]
[1646776126764,1.95668,2557.5,2556.9,1.13]
[1646776126963,5.1917,2557.5,2557.0,1.58834795]
[1646776127365,6.1917,2557.5,2557.0,1.58834795]
[1646776127764,6.1917,2557.5,2556.9,1.13]
[1646776128567,0.97833,2557.4,2556.9,1.13]
[1646776128866,0.97834,2557.3,2556.9,1.13]
[1646776131508,1.95678,2557.2,2556.9,1.13]
[1646776131707,0.97831,2557.1,2556.9,1.13]
[1646776131909,0.97831,2557.1,2556.6,4.39137046]
[1646776132109,0.97831,2557.1,2556.7,1.5902215]
[1646776132712,1.27831,2557.1,2556.7,1.5902215]
[1646776132909,3.5,2557.0,2556.8,1.5902215]
[1646776133109,0.07997052,2556.9,2556.6,0.00325394]
[1646776133310,2.03729052,2556.9,2556.6,0.00325394]
[1646776133509,3.5,2556.8,2556.6,0.00325394]
[1646776133714,4.8,2556.8,2556.5,1.57109143]
[1646776134154,1.95744,2556.7,2556.3,1.2228]
[1646776134452,3.91488,2556.7,2556.4,1.57161588]
[1646776134653,0.97872,2556.6,2556.4,1.57161588]
[1646776134853,7.85103,2556.7,2556.4,1.57161588]
[1646776135055,5.89359,2556.7,2556.4,1.57161588]
[1646776135453,0.07998101,2556.6,2556.4,1.57161588]
[1646776135856,5.89359,2556.7,2556.4,1.57161588]
[1646776136155,5.89359,2556.7,2555.7,2.8267]
[1646776136156,19.82665289,2556.6,2555.7,2.8267]
[1646776136355,2.03755581,2556.5,2555.8,1.57125348]
[1646776136559,3.5,2556.4,2555.8,1.57125348]
[1646776136758,4.5,2556.4,2555.8,1.57125348]
[1646776137161,4.5,2556.4,2555.8,1.96305348]
[1646776137162,0.97882,2556.3,2555.8,1.96305348]
[1646776137362,0.97879,2556.4,2556.0,0.3918]
[1646776137561,0.97879,2556.4,2556.1,1.57125348]
[1646776138612,0.97879,2556.4,2556.2,1.57125348]
[1646776138812,0.97879,2556.4,2556.3,2.23415452]
[1646776139213,0.3162,2557.0,2556.3,2.62595452]
[1646776139414,0.32239969,2557.0,2556.5,0.3918]
[1646776139614,0.32239969,2557.0,2556.7,0.3918]
[1646776139814,0.32239969,2557.0,2556.8,1.57125348]
[1646776140716,0.32239969,2557.0,2556.9,1.57125348]
[1646776144362,0.3162,2557.0,2556.9,1.57125348]
[1646776146105,0.3162,2557.0,2556.9,1.54141025]
[1646776146511,0.3162,2557.0,2556.8,1.54141025]
[1646776146711,0.3162,2557.0,2556.9,1.54141025]
[1646776146910,0.3162,2557.0,2556.8,1.54141025]
[1646776147111,0.3162,2557.0,2556.9,1.54141025]
[1646776147311,0.3,2557.1,2556.9,1.54141025]
[1646776147514,1.28680167,2557.3,2557.0,1.54141025]
[1646776147713,0.07996465,2557.2,2557.1,1.54141025]
[1646776148112,0.07996465,2557.2,2556.8,1.54141025]
[1646776148316,0.07996465,2557.2,2557.1,0.80211462]
[1646776148513,0.07996465,2557.2,2557.0,1.54141025]
[1646776148712,0.07996465,2557.2,2556.5,0.00336352]
[1646776148713,0.07996465,2557.2,2557.1,1.54141025]
[1646776148951,1.95679,2557.1,2556.5,0.00336352]
[1646776149154,0.07996465,2557.0,2556.5,1.54552492]
[1646776149451,0.07996465,2557.0,2556.5,1.5421614]
[1646776149852,0.97854,2556.9,2556.5,1.5421614]
[1646776150056,0.07996465,2556.8,2556.5,1.5421614]
[1646776150254,1.05853465,2556.8,2556.5,1.5421614]
[1646776150452,0.07996465,2556.7,2556.5,1.5421614]
[1646776150654,0.65380451,2556.7,2555.6,4.83013341]
[1646776150856,5.92922465,2556.6,2555.7,2.28856226]
[1646776151053,0.07996465,2556.5,2555.8,1.54281144]
[1646776151452,2.03741465,2556.5,2555.8,1.54281144]
[1646776151656,0.07996465,2556.4,2555.8,1.54281144]
[1646776151857,1.95748,2556.3,2555.8,1.54281144]
[1646776153103,0.97874,2556.2,2555.8,1.54281144]
[1646776153304,0.97874,2556.2,2555.9,0.00361298]
[1646776153506,1.95747,2556.2,2555.9,0.00361298]
[1646776153703,2.25747,2556.2,2555.9,0.00361298]
[1646776154304,2.25747,2556.2,2555.8,1.54281144]
[1646776154504,2.25747,2556.2,2555.9,0.00361298]
[1646776154905,0.55101789,2556.2,2555.9,0.00361298]
[1646776155504,0.55101789,2556.2,2555.8,1.54281144]
[1646776155704,0.55101789,2556.2,2555.9,0.00361298]
[1646776156107,1.52974789,2556.2,2555.9,0.00361298]
[1646776156555,1.82974789,2556.2,2555.9,0.00361298]
[1646776156755,1.82974789,2556.2,2555.8,1.54281144]
[1646776156955,1.82974789,2556.2,2555.9,0.00361298]
[1646776157856,1.82974789,2556.2,2555.8,1.54281144]
[1646776158258,1.82974789,2556.2,2555.9,0.00349104]
[1646776159058,1.27873,2556.2,2555.8,1.54281144]
[1646776159260,0.97873,2556.2,2555.8,1.54281144]
[1646776159459,0.00619969,2556.4,2555.9,0.47349104]
[1646776159659,0.00619969,2556.4,2556.0,1.93461144]
[1646776159860,0.00619969,2556.4,2556.1,2.01281144]
[1646776160062,2.9359,2556.9,2556.2,1.93461144]
[1646776160308,0.97835,2557.4,2556.8,0.81360152]
[1646776160508,2.03646448,2557.3,2556.8,0.81360152]
[1646776160710,0.07997448,2557.2,2556.8,0.81360152]
[1646776161106,0.07997448,2557.2,2556.9,1.50910965]
[1646776162008,0.97823,2557.1,2556.5,0.00297039]
[1646776162215,0.07997448,2557.0,2556.5,1.982373]
[1646776162409,0.07997448,2557.0,2556.6,1.50940261]
[1646776163211,0.07997448,2557.0,2556.8,0.80182082]
[1646776163608,0.07997448,2557.0,2556.5,0.47]
[1646776163956,0.07997448,2557.0,2556.6,1.5097077]
[1646776164556,0.07997448,2557.0,2556.5,1.5097077]
[1646776164754,1.9569,2556.9,2556.5,1.5097077]
[1646776164956,3.57997448,2556.8,2556.5,1.5097077]
[1646776165156,1.05855448,2556.7,2556.5,1.5097077]
[1646776165355,0.07997448,2556.6,2556.5,1.5097077]
[1646776165555,0.07997448,2556.6,2556.5,1.51306933]
[1646776166257,0.07997448,2556.6,2556.2,0.01344774]
[1646776166460,0.07997448,2556.6,2556.3,1.51069029]
[1646776166461,4.95039448,2556.6,2556.3,1.51069029]
[1646776166659,2.42914448,2556.5,2555.9,2.9569]
[1646776166859,0.3918,2556.3,2556.0,1.51086682]
[1646776167060,3.57997448,2556.2,2556.1,1.51086682]
[1646776167260,0.37997448,2556.2,2556.1,1.51086682]
[1646776167462,1.37997448,2556.2,2556.1,1.51086682]
[1646776167714,1.37997448,2556.2,2555.4,3.13063341]
[1646776167715,1.37997448,2556.2,2555.9,1.51086682]
[1646776167905,1.05886448,2556.1,2556.0,1.51086682]
[1646776168304,0.97888,2556.0,2555.3,0.71233341]
[1646776168505,0.97891,2555.9,2555.3,0.71233341]
[1646776168710,4.77891,2555.9,2555.2,2.72306782]
[1646776168906,5.75787,2555.9,2555.3,1.51073441]
[1646776169113,2.03829644,2555.8,2555.3,1.51073441]
[1646776169308,0.3918,2555.7,2555.3,1.51073441]
[1646776169707,4.1918,2555.7,2555.3,1.51073441]
[1646776169911,2.65015,2555.7,2555.3,1.51073441]
[1646776170110,2.93742,2555.6,2555.3,1.51073441]
[1646776170308,3.93742,2555.6,2555.4,0.00335015]
[1646776171108,3.93742,2555.6,2555.3,1.51073441]
[1646776171560,3.93742,2555.6,2555.4,0.00335015]
[1646776171764,2.93742,2555.6,2555.4,0.00335015]
[1646776171960,3.93742,2555.6,2555.4,0.00335015]
[1646776172361,3.93742,2555.6,2555.3,1.51073441]
[1646776172560,3.93742,2555.6,2555.4,0.00335015]
[1646776173663,3.93742,2555.6,2555.3,1.51073441]
[1646776173864,3.93742,2555.6,2555.4,0.00328735]
[1646776174469,2.93742,2555.6,2555.4,0.00328735]
[1646776174666,0.00865167,2555.8,2555.4,0.39508735]
[1646776174866,3.5,2556.7,2556.0,0.00770128]
[1646776175065,0.08730747,2556.6,2556.1,1.50066534]
[1646776175306,0.08730747,2556.5,2556.1,1.50066534]
[1646776175505,1.95702,2557.0,2556.4,0.76612795]
[1646776175707,0.08705927,2556.9,2556.4,0.76612795]
[1646776175905,0.97843,2556.8,2556.4,1.62792795]
[1646776176106,1.9567,2557.4,2556.4,1.62792795]
[1646776176107,0.71714508,2557.7,2556.8,0.3918]
[1646776176308,1.71397118,2558.0,2557.0,0.3918]
[1646776176511,1.71397118,2558.0,2557.1,0.8618]
[1646776176512,0.00317479,2557.7,2557.1,0.8618]
[1646776176710,0.00317479,2557.7,2557.3,0.3918]
[1646776176913,0.00317479,2557.7,2557.5,0.3918]
[1646776177109,0.00317479,2557.7,2557.6,0.47]
[1646776177313,0.00317479,2557.7,2557.6,0.8618]
[1646776177511,0.00317479,2557.7,2557.6,1.1618]
[1646776177710,1.0,2558.0,2557.6,1.1618]
[1646776177917,0.0031963,2557.7,2557.6,1.1618]
[1646776178511,1.0,2558.0,2557.7,1.3693546]
[1646776178711,0.00192384,2557.8,2557.7,0.6918]
[1646776178958,0.00192384,2557.8,2557.7,1.1618]
[1646776179158,0.00192384,2557.8,2557.7,0.8618]
[1646776179561,0.97764,2558.6,2557.7,0.8618]
[1646776179760,0.00769376,2558.4,2558.2,0.84055804]
[1646776180559,0.00769376,2558.4,2557.9,0.47]
[1646776180771,0.97781,2558.4,2557.6,0.47]
[1646776180958,0.97781,2558.4,2557.4,0.47]
[1646776181158,0.97797,2558.2,2557.3,0.47]
[1646776181565,0.97797,2558.2,2557.6,0.7402424]
[1646776182364,0.98162389,2558.0,2557.1,5.2106]
[1646776182564,0.9781,2557.9,2557.1,1.7106]
[1646776182806,1.95619,2557.7,2557.1,1.7106]
[1646776183006,1.95619,2557.7,2557.1,0.47]
[1646776183405,1.95619,2557.7,2557.3,0.91908085]
[1646776183610,1.95971401,2557.7,2557.3,0.91908085]
[1646776184407,1.27809,2557.8,2557.3,0.91908085]
[1646776184607,1.27809,2557.8,2557.3,1.38908085]
[1646776185007,0.00332278,2557.7,2557.3,1.38908085]
[1646776185607,1.27809,2557.8,2557.3,1.38908085]
[1646776186006,0.00304592,2557.7,2557.3,1.38908085]
[1646776186859,1.27809,2557.8,2557.3,1.38908085]
[1646776187060,0.00304592,2557.7,2557.3,1.38908085]
[1646776187961,1.27809,2557.8,2557.3,1.38908085]
[1646776188361,0.00323888,2557.7,2557.3,1.38908085]
[1646776189163,1.27809,2557.8,2557.3,1.38908085]
[1646776189564,0.00328616,2557.7,2557.3,1.38908085]
[1646776190402,1.27809,2557.8,2557.3,1.38908085]
[1646776190602,0.00328616,2557.7,2557.3,1.38908085]
[1646776191607,2.25587,2558.0,2557.3,1.38908085]
[1646776192006,0.00307985,2557.7,2557.3,1.38908085]
[1646776192810,2.25587,2558.0,2557.3,1.38908085]
[1646776193012,0.00306643,2557.7,2557.3,1.38908085]
[1646776193810,0.00306643,2557.7,2557.4,3.5]
[1646776194062,0.3,2558.0,2557.4,3.97]
[1646776194261,0.71397118,2559.0,2557.4,5.27]
[1646776194462,0.00189837,2557.7,2557.4,5.27]
[1646776194961,0.00759136,2558.4,2558.3,0.87071898]
[1646776195160,0.3918,2559.0,2558.3,0.87071898]
[1646776195366,1.36945,2559.0,2558.3,0.87071898]
[1646776195765,1.66945,2559.0,2558.3,0.87071898]
[1646776195962,0.97769,2558.7,2558.3,0.87071898]
[1646776196164,0.0846417,2558.6,2558.3,0.87071898]
[1646776196362,1.27769,2558.7,2558.3,0.87071898]
[1646776196566,0.08464366,2558.6,2558.3,0.87071898]
[1646776196767,0.08813487,2558.6,2558.3,0.87071898]
[1646776196969,0.00349121,2558.6,2558.3,0.87071898]
[1646776197170,0.00349121,2558.6,2558.3,1.34071898]
[1646776197367,0.00349121,2558.6,2558.4,3.5]
[1646776197568,7.36,2559.3,2558.5,0.47]
[1646776197806,0.08449261,2559.2,2558.6,3.5]
[1646776198009,0.08449261,2559.2,2559.1,0.84172214]
[1646776198906,7.36,2559.3,2558.5,3.4477]
[1646776199106,0.08442891,2559.2,2558.5,3.4477]
[1646776199307,0.08442891,2559.2,2558.1,2.0643]
[1646776199907,0.18294713,2559.1,2558.1,0.47]
[1646776200106,0.18294713,2559.1,2558.6,0.7392286]
[1646776200306,0.00330601,2558.8,2558.0,1.24159478]
[1646776200510,0.97773,2558.7,2558.0,1.24159478]
[1646776200707,1.27773,2558.7,2558.0,1.24159478]
[1646776201207,1.27773,2558.7,2558.1,0.79194897]
[1646776201462,0.3,2558.7,2558.1,1.26194897]
[1646776201666,0.0032407,2558.5,2558.1,1.26194897]
[1646776202463,1.27758,2558.9,2558.1,1.26194897]
[1646776202666,0.00324073,2558.4,2558.1,1.26194897]
[1646776202864,0.00324073,2558.4,2558.1,4.76194897]
[1646776203066,0.00324073,2558.4,2558.1,1.26194897]
[1646776203666,1.27758,2558.9,2558.1,1.26194897]
[1646776203865,0.00324224,2558.4,2558.1,1.26194897]
[1646776204867,1.27758,2558.9,2558.1,1.26194897]
[1646776205066,0.0030465,2558.4,2558.1,1.26194897]
[1646776206108,1.27758,2558.9,2558.1,1.26194897]
[1646776206308,0.0030465,2558.4,2558.1,1.26194897]
[1646776207114,0.0030465,2558.4,2558.1,0.79194897]
[1646776207115,0.9808465,2558.4,2558.1,0.79194897]
[1646776207312,0.9778,2558.4,2558.1,0.79194897]
[1646776207813,0.9808659,2558.4,2558.1,0.79194897]
[1646776208813,0.98089447,2558.4,2558.1,0.79194897]
[1646776209661,0.3,2558.5,2558.1,0.79194897]
[1646776209860,0.97771,2558.6,2558.1,0.79194897]
[1646776210062,0.00309447,2558.4,2558.1,0.79194897]
[1646776210260,0.00309447,2558.4,2558.0,0.00169478]
[1646776210962,0.3918,2558.5,2558.0,0.00169478]
[1646776211163,0.00190065,2558.3,2558.0,0.00169478]
[1646776211364,0.97977065,2558.3,2558.0,0.00169478]
[1646776211564,1.27977065,2558.3,2558.0,0.00169478]
[1646776211764,0.3,2558.3,2558.0,0.00169478]
[1646776212368,0.97787,2558.3,2558.0,0.00169478]
[1646776213410,1.27787,2558.3,2558.0,0.00169478]
[1646776215107,0.3,2558.3,2558.0,0.00169478]
[1646776215307,0.00220156,2558.4,2558.0,0.00169478]
[1646776215508,0.00220156,2558.4,2558.1,0.47]
[1646776215707,0.13819997,2559.2,2558.1,0.47]
[1646776216208,0.00362073,2558.4,2558.1,0.47]
[1646776216860,0.52999997,2559.2,2558.1,0.47]
[1646776217059,0.97756,2559.0,2558.5,0.90021404]
[1646776217259,0.01448131,2558.8,2558.1,0.47]
[1646776218159,1.36936,2559.0,2558.1,0.47]
[1646776218359,0.00362076,2558.6,2558.4,0.66606366]
[1646776219360,0.97766,2558.8,2558.4,0.66606366]
[1646776219558,0.97766,2558.8,2558.0,0.00169478]
[1646776219559,0.00362073,2558.6,2558.0,0.00169478]
[1646776219759,0.00362073,2558.6,2558.0,0.47169478]
[1646776219961,0.00362073,2558.6,2558.1,1.50469564]
[1646776220407,0.00362073,2558.6,2558.0,0.00169478]
[1646776220607,0.08364906,2558.7,2558.3,0.65716903]
[1646776220808,0.00355292,2558.5,2558.3,0.65716903]
[1646776221811,0.08364906,2558.5,2558.3,0.65716903]
[1646776222011,0.08720196,2558.5,2558.0,0.00169478]
[1646776222211,0.08720196,2558.5,2558.0,1.50844914]
[1646776222911,0.08364906,2558.5,2558.0,1.50844914]
[1646776223112,0.00355292,2558.4,2558.0,1.50844914]
[1646776223313,0.00355292,2558.4,2558.1,0.87038528]
[1646776223515,0.00355292,2558.4,2558.2,1.50675436]
[1646776224159,0.08364906,2558.5,2558.2,1.50675436]
[1646776224357,0.00336566,2558.4,2558.2,1.50675436]
[1646776225357,0.08364906,2558.5,2558.2,1.50675436]
[1646776225559,0.00336566,2558.4,2558.2,1.50675436]
[1646776226563,0.08364906,2558.5,2558.2,1.50675436]
[1646776226764,0.00336566,2558.4,2558.2,1.50675436]
[1646776227808,0.08364906,2558.7,2558.2,1.50675436]
[1646776228008,0.00337615,2558.4,2558.2,1.50675436]
[1646776228811,0.08364906,2558.7,2558.2,1.50675436]
[1646776228812,0.79762024,2558.7,2558.2,1.50675436]
[1646776229209,0.00337615,2558.4,2558.2,1.50675436]
[1646776229609,0.00337615,2558.4,2558.2,1.51801358]
[1646776229811,0.00337615,2558.4,2558.3,1.50675436]
[1646776230108,0.79762024,2558.7,2558.3,1.50675436]
[1646776230309,0.00337615,2558.4,2558.3,1.50675436]
[1646776230708,0.08702521,2558.4,2558.3,1.50675436]
[1646776230909,0.00337615,2558.4,2558.3,1.50675436]
[1646776231307,0.79762024,2558.7,2558.3,1.50675436]
[1646776231577,0.00337459,2558.5,2558.3,1.50675436]
[1646776232366,0.08702365,2558.5,2558.3,1.50675436]
[1646776232566,0.08364906,2558.4,2558.3,1.51801358]
[1646776232967,0.00337457,2558.5,2558.3,1.51801358]
[1646776233168,0.00337457,2558.5,2558.4,1.50675436]
[1646776233467,0.00337457,2558.5,2558.4,1.51801358]
[1646776233669,0.79762024,2558.7,2558.4,1.51801358]
[1646776233866,0.00337454,2558.6,2558.4,0.01125922]
[1646776234869,0.79762024,2558.7,2558.5,1.50925878]
[1646776235068,0.79762024,2558.7,2558.4,0.01125922]
[1646776235314,0.14910833,2558.3,2558.1,1.17038528]
[1646776235514,0.14910833,2558.3,2558.2,1.50926111]
[1646776235716,0.23309918,2558.3,2558.2,1.50926111]
[1646776239066,0.00337477,2558.4,2558.3,5.8918]
[1646776239269,0.00337477,2558.4,2558.3,10.1618]
[1646776239466,0.00337477,2558.4,2558.3,11.3524]
[1646776239665,0.71397118,2559.1,2558.3,12.06473341]
[1646776240064,0.00220394,2558.5,2558.3,13.04206731]
[1646776240264,0.00220394,2558.5,2558.4,4.35060081]
[1646776240463,0.00220394,2558.5,2558.4,4.82060081]
[1646776240665,0.00220394,2558.5,2558.4,5.82060081]
[1646776240866,0.71397118,2559.2,2558.4,5.82060081]
[1646776241067,0.71397118,2559.3,2558.4,6.53293422]
[1646776241263,0.00220394,2558.6,2558.4,6.79793931]
[1646776241465,0.00220394,2558.6,2558.4,3.68973931]
[1646776241670,0.00220394,2558.6,2558.5,3.8918]
[1646776241877,0.00220394,2558.6,2558.5,4.6618]
[1646776242071,0.71397118,2559.3,2558.5,4.6618]
[1646776242273,0.71397118,2559.4,2558.5,4.6618]
[1646776242570,0.00362439,2558.7,2558.5,4.6618]
[1646776243410,0.71397118,2559.3,2558.5,1.1618]
[1646776243610,1.93365778,2559.6,2558.5,4.6618]
[1646776243611,0.00362436,2558.7,2558.5,4.6618]
[1646776243811,0.00362436,2558.7,2558.5,1.1618]
[1646776244011,0.00362436,2558.7,2558.6,3.5]
[1646776244216,2.436e-05,2558.7,2558.6,5.3618]
[1646776244418,2.436e-05,2558.7,2558.6,7.26683341]
[1646776244614,0.00180292,2559.9,2558.6,38.64300941]
[1646776244818,0.00180292,2560.1,2559.1,0.3918]
[1646776245012,0.71397118,2560.2,2559.2,4.3618]
[1646776245013,0.00180292,2559.9,2559.2,4.3618]
[1646776245212,0.71397118,2560.2,2559.4,1.36867]
[1646776245415,0.71397118,2560.3,2559.5,3.97]
[1646776245613,7.36,2560.9,2559.6,1.5487]
[1646776245614,0.7157741,2560.4,2559.6,1.5487]
[1646776245814,0.7157741,2560.7,2559.7,3.97]
[1646776246012,0.71397118,2560.7,2559.7,4.27]
[1646776246212,0.71397118,2560.7,2560.4,0.71879886]
[1646776246464,0.00180292,2560.8,2560.2,0.9767032]
[1646776246465,0.71397118,2560.8,2560.2,0.9767032]
[1646776246669,0.71397118,2560.8,2560.1,0.47]
[1646776246868,0.71397118,2560.7,2560.1,0.47]
[1646776247267,0.71397118,2560.7,2560.1,0.77]
[1646776247668,0.3,2560.8,2560.2,0.6607105]
[1646776247669,1.01397118,2560.8,2560.2,0.6607105]
[1646776247869,0.71397118,2560.8,2560.2,0.6607105]
[1646776248470,0.00363389,2560.6,2560.2,0.6607105]
[1646776249472,0.71397118,2560.8,2560.2,0.6607105]
[1646776249676,0.00363395,2560.5,2560.2,0.6607105]
[1646776249871,0.00363395,2560.5,2560.2,0.9607105]
[1646776250511,0.00180292,2560.9,2560.2,1.4307105]
[1646776250713,0.00219725,2560.5,2560.2,1.4307105]
[1646776251615,0.00180292,2561.0,2560.2,1.4307105]
[1646776251815,1.36858,2561.1,2560.2,0.47]
[1646776252016,0.00219725,2560.5,2560.2,0.47]
[1646776252821,1.66871,2560.8,2560.2,0.47]
[1646776253017,1.27691,2560.8,2560.3,0.81581782]
[1646776253225,0.00363812,2560.5,2560.3,0.81581782]
[1646776254261,0.97679,2561.0,2560.3,0.81581782]
[1646776254460,0.0036381,2560.5,2560.3,0.81581782]
[1646776254660,0.0036381,2560.5,2559.9,0.9768099]
[1646776254864,0.0036381,2560.5,2559.9,1.2768099]
[1646776255162,0.0036381,2560.5,2559.9,1.7468099]
[1646776255363,0.00180292,2560.8,2559.9,1.7468099]
[1646776255561,0.00363821,2560.3,2559.9,1.7468099]
[1646776255961,0.00363821,2560.3,2560.0,0.8665631]
[1646776256363,0.00363821,2560.3,2559.9,0.47]
[1646776256567,0.3918,2560.7,2559.9,0.47]
[1646776256969,0.00363824,2560.3,2559.9,0.47]
[1646776257266,0.00363824,2560.3,2559.9,0.42300001]
[1646776257723,0.3918,2560.6,2559.9,0.42300001]
[1646776257910,0.39360292,2560.8,2560.0,0.83052601]
[1646776258109,0.00363826,2560.2,2560.0,0.83052601]
[1646776258509,0.0027371,2560.2,2560.0,0.83052601]
[1646776259111,0.07988059,2560.5,2560.0,0.83052601]
[1646776259311,0.07988059,2560.4,2560.0,0.83052601]
[1646776259510,0.00180292,2560.8,2560.0,0.83052601]
[1646776259712,0.07987634,2560.8,2560.0,0.83052601]
[1646776260310,0.07987634,2560.8,2560.0,1.80729451]
[1646776260512,0.0021931,2560.5,2560.0,1.80729451]
[1646776260711,0.0021931,2560.5,2560.0,0.83052601]
[1646776261459,0.07987634,2560.8,2560.0,0.83052601]
[1646776261665,0.00363818,2560.4,2560.0,0.83052601]
[1646776262164,0.00363818,2560.4,2560.0,4.63052601]
[1646776262366,0.00363818,2560.4,2560.0,6.10052601]
[1646776262966,0.00363821,2560.3,2560.0,6.10052601]
[1646776263770,0.00180292,2560.8,2560.0,6.10052601]
[1646776263970,0.07987229,2560.9,2560.0,6.10052601]
[1646776264170,0.00363824,2560.3,2560.0,6.10052601]
[1646776265069,1.27860292,2561.0,2560.0,1.60052601]
[1646776265315,0.00363824,2560.3,2560.0,1.60052601]
[1646776266113,0.00363824,2560.3,2560.0,0.77]
[1646776266412,0.0798736,2560.6,2560.0,0.47]
[1646776266616,0.00351545,2560.3,2560.0,0.47]
[1646776267220,0.00351545,2560.3,2560.0,0.77]
[1646776267521,0.07987502,2560.6,2560.0,0.77]
[1646776267716,0.00351545,2560.3,2560.0,0.77]
[1646776268517,0.00351545,2560.3,2560.0,0.47]
[1646776268718,0.3,2560.5,2560.0,0.47]
[1646776268966,0.00351545,2560.3,2560.0,0.47]
[1646776269772,0.07987876,2560.6,2560.0,0.47]
[1646776269969,0.07987876,2560.5,2560.1,0.976768]
[1646776270168,1.71397118,2561.1,2560.1,0.976768]
[1646776270169,0.00337075,2560.3,2560.1,0.976768]
[1646776271072,0.07988305,2560.6,2560.1,0.976768]
[1646776271269,0.00337073,2560.3,2560.1,0.976768]
[1646776272173,0.07988163,2560.6,2560.1,0.976768]
[1646776272729,0.00337073,2560.3,2560.1,0.976768]
[1646776273123,0.00337073,2560.3,2559.9,3.99718604]
[1646776273319,0.00337073,2560.3,2559.9,4.29718604]
[1646776273520,0.07988304,2560.6,2559.9,4.29718604]
[1646776273720,0.97685,2560.9,2559.9,4.29718604]
[1646776273721,0.00339189,2560.3,2559.9,4.29718604]
[1646776274623,0.07988277,2560.6,2559.9,4.29718604]
[1646776274823,0.00219639,2560.2,2559.9,4.29718604]
[1646776275024,0.00219639,2560.2,2559.9,5.27396054]
[1646776275334,0.97685,2560.9,2559.9,5.27396054]
[1646776275335,0.71008725,2561.9,2560.2,12.3318]
[1646776275532,1.10098725,2562.1,2560.8,0.3918]
[1646776275728,0.3909,2562.1,2561.0,0.3918]
[1646776275923,0.3909,2562.1,2561.2,0.3918]
[1646776276128,0.3909,2562.1,2561.9,0.7452304]
[1646776276324,0.3909,2562.1,2561.9,1.6070304]
[1646776276567,0.3909,2562.1,2561.9,1.9070304]
[1646776276967,0.01977644,2562.4,2561.9,1.9070304]
[1646776277167,0.01977644,2562.4,2561.9,2.8830403]
[1646776277368,0.01977644,2562.4,2561.9,2.69233727]
[1646776277570,0.01977644,2562.4,2561.9,3.5830403]
[1646776277769,0.01977644,2562.4,2562.0,3.5]
[1646776277968,0.01977644,2562.4,2562.1,0.47]
[1646776279170,0.01977644,2562.4,2562.1,0.77]
[1646776279471,0.01977644,2562.4,2561.9,1.1723]
[1646776279671,0.01977644,2562.4,2561.9,1.4723]
[1646776279870,0.0234158,2562.4,2561.9,1.4723]
[1646776280411,1.9761558,2562.4,2561.9,2.28762708]
[1646776280611,1.97251644,2562.4,2561.9,2.28762708]
[1646776281017,1.92615586,2562.4,2561.9,1.4723]
[1646776281211,5.42615586,2562.4,2561.9,1.4723]
[1646776281413,5.42615586,2562.4,2561.6,1.1964]
[1646776281622,5.42615586,2562.4,2560.9,8.3596]
[1646776281817,0.97661,2562.1,2561.0,1.1904]
[1646776282014,3.5,2562.0,2561.0,1.1904]
[1646776282414,4.5,2562.0,2561.0,1.1904]
[1646776282618,3.5,2562.0,2561.0,1.1904]
[1646776282818,0.97658,2561.8,2561.0,1.1904]
[1646776283015,7.61227135,2562.0,2561.0,1.1904]
[1646776283016,3.5,2561.7,2561.0,1.1904]
[1646776283315,1.15911135,2562.0,2561.0,1.1904]
[1646776283316,3.50177933,2561.9,2561.0,1.1904]
[1646776283521,3.5,2561.9,2561.0,1.1904]
[1646776283961,0.97667,2561.6,2561.0,1.1904]
[1646776284160,3.5,2561.5,2561.0,1.1904]
[1646776284562,3.5,2561.5,2560.9,0.207]
[1646776284966,1.9535,2561.4,2560.9,0.207]
[1646776285163,3.5,2561.3,2560.9,0.207]
[1646776286269,0.97674,2561.3,2560.9,0.207]
[1646776289821,0.97572172,2561.3,2560.9,0.207]
[1646776290220,0.97572172,2561.3,2560.6,1.4964]
[1646776293168,0.97572172,2561.3,2560.6,1.1964]
[1646776293367,0.97572172,2561.3,2560.7,0.976625]
[1646776299869,0.97572172,2561.3,2560.7,0.926625]
[1646776301876,0.3,2561.4,2560.8,0.3]
[1646776302273,0.97658,2561.5,2560.8,0.3]
[1646776305614,0.97658,2561.5,2560.6,1.1964]
[1646776306014,0.97658,2561.5,2560.6,1.4964]
[1646776306216,0.97658,2561.5,2560.6,1.9664]
[1646776307871,3.5,2561.4,2560.6,1.9664]
[1646776308070,0.97667,2561.3,2560.6,1.9664]
[1646776311821,0.97667,2561.3,2560.6,1.4964]
[1646776313965,4.47667,2561.3,2560.6,1.1964]
[1646776314567,5.423453,2561.3,2560.5,1.135]
[1646776314970,17.363453,2561.3,2560.5,1.135]
[1646776315167,18.26715849,2561.3,2560.3,0.00352671]
[1646776315369,1.923703,2561.2,2560.3,0.00352671]
[1646776315568,1.923703,2561.2,2560.2,3.264]
[1646776315569,0.97696,2561.0,2560.2,3.264]
[1646776315768,3.5,2560.9,2560.2,3.264]
[1646776315969,3.5,2560.9,2560.3,0.00337053]
[1646776316773,3.5,2560.9,2560.2,3.264]